bitfinex-derivatives/quotes_ETHF0:USTF0_20251024
["timestamp","ask_amount","ask_price","bid_price","bid_amount"]
[1761296860207,0.02484322,3962.8,3962.7,0.7547]
[1761296860602,0.02484322,3962.8,3962.7,9.7277]
[1761296861611,0.23614322,3962.8,3962.7,9.7277]
[1761296861907,0.44884322,3962.8,3962.4,0.3176]
[1761296862111,0.7558,3962.5,3962.4,8.32587]
[1761296862408,0.23614322,3962.8,3962.7,0.7547]
[1761296863111,0.02484322,3962.8,3962.7,0.7547]
[1761296863295,3.2078,3963.4,3962.7,0.7547]
[1761296863503,3.9636,3963.4,3963.3,0.7547]
[1761296863811,3.9636,3963.4,3963.3,0.4371]
[1761296864003,3.9636,3963.4,3963.3,0.223]
[1761296864202,3.9636,3963.4,3963.0,7.2136]
[1761296864203,0.3318,3963.3,3963.0,7.6507]
[1761296864502,0.7558,3963.1,3963.0,7.6507]
[1761296865512,0.7558,3963.1,3963.0,0.4371]
[1761296865812,0.00206266,3963.3,3963.2,0.7547]
[1761296866014,0.5431,3964.1,3963.9,0.3176]
[1761296866308,0.3318,3964.4,3964.0,0.4371]
[1761296866512,0.424,3964.4,3964.3,0.4371]
[1761296866703,0.424,3964.4,3964.3,0.7547]
[1761296866901,3.2078,3964.5,3964.4,0.45395]
[1761296867112,3.2078,3964.5,3964.4,1.20865]
[1761296867299,0.002811,3964.5,3964.4,1.20865]
[1761296867614,0.5431,3965.4,3965.3,0.7547]
[1761296867804,0.7558,3965.5,3965.4,0.7547]
[1761296868004,0.7558,3965.1,3965.0,4.198]
[1761296868310,0.7558,3965.4,3965.3,0.7547]
[1761296868511,0.75834465,3965.4,3965.3,0.7547]
[1761296869102,0.75834465,3965.4,3964.6,3.2078]
[1761296869103,0.8896,3965.0,3964.9,9.012]
[1761296869308,0.7558,3965.0,3964.9,9.7667]
[1761296869504,0.2113,3965.0,3964.9,9.7667]
[1761296869701,0.424,3965.0,3964.9,0.4371]
[1761296869905,0.7558,3965.0,3964.9,0.7547]
[1761296870210,0.424,3965.1,3965.0,0.223]
[1761296870404,0.424,3965.1,3965.0,0.7547]
[1761296870715,0.7558,3965.1,3965.0,0.7547]
[1761296871107,0.7558,3965.3,3965.2,0.4371]
[1761296871312,0.2113,3965.3,3965.2,0.7547]
[1761296871612,0.00254465,3965.4,3965.3,0.7547]
[1761296872301,0.5431,3966.4,3966.3,0.223]
[1761296872504,0.5431,3966.4,3966.3,0.4371]
[1761296872505,0.2127,3966.4,3966.3,0.4371]
[1761296872706,0.7558,3966.4,3966.3,0.4371]
[1761296872905,5.0,3966.4,3965.5,0.1329]
[1761296873104,0.143,3965.6,3965.1,0.3176]
[1761296873304,0.14582306,3965.6,3965.3,0.3176]
[1761296873714,3.3508,3965.4,3965.3,0.3176]
[1761296873915,3.3508,3965.4,3964.8,0.3176]
[1761296874114,3.3508,3964.9,3964.8,0.3176]
[1761296874410,3.3508,3964.9,3964.8,0.5406]
[1761296874604,3.3508,3964.9,3964.5,0.4505]
[1761296874803,3.3508,3964.9,3964.6,0.3176]
[1761296875000,3.3508,3964.9,3964.5,0.1329]
[1761296875207,3.3508,3964.9,3964.5,0.4505]
[1761296875415,3.3508,3964.9,3964.6,0.3176]
[1761296876409,8.3508,3964.9,3964.3,0.003092]
[1761296876603,3.3508,3964.4,3964.3,0.003092]
[1761296876813,3.3508,3964.4,3964.3,0.543692]
[1761296876814,3.2793,3964.4,3964.3,0.543692]
[1761296877405,3.3508,3964.4,3964.3,0.543692]
[1761296877609,3.3508,3964.4,3964.3,0.003092]
[1761296879109,3.4229,3964.4,3964.3,0.353292]
[1761296879620,3.4229,3964.4,3964.3,0.003092]
[1761296879806,3.3508,3964.4,3964.3,0.575492]
[1761296880112,3.2078,3964.4,3964.3,0.802792]
[1761296881014,3.2799,3964.4,3964.3,0.802792]
[1761296881514,3.352,3964.4,3964.3,0.353292]
[1761296881713,3.4241,3964.4,3964.3,0.003092]
[1761296882114,3.352,3964.4,3964.3,0.353292]
[1761296882312,3.352,3964.4,3964.3,0.575492]
[1761296882713,3.4241,3964.4,3964.3,0.003092]
[1761296883107,3.352,3964.4,3964.3,0.353292]
[1761296883319,3.4241,3964.4,3964.3,0.353292]
[1761296883617,3.352,3964.4,3964.3,0.353292]
[1761296883814,0.91018552,3964.8,3964.7,0.2222]
[1761296883815,0.98228552,3964.8,3964.7,0.2222]
[1761296884028,0.0721,3964.7,3964.5,0.484]
[1761296884228,0.1442,3964.6,3964.5,0.484]
[1761296884416,0.2163,3964.6,3964.5,0.3502]
[1761296884820,3.2078,3964.9,3964.6,0.3502]
[1761296885110,0.0721,3964.7,3964.6,0.7997]
[1761296887521,3.2078,3964.9,3964.8,0.7997]
[1761296887915,0.00282306,3965.6,3965.5,0.3502]
[1761296888116,0.07492306,3965.6,3965.5,0.9335]
[1761296888315,0.14702306,3965.6,3965.5,0.9335]
[1761296888519,0.00282306,3965.6,3965.5,0.9335]
[1761296889723,3.2078,3966.2,3966.1,0.2222]
[1761296889918,3.2799,3966.2,3966.1,0.7997]
[1761296890219,3.4241,3966.2,3966.0,0.1338]
[1761296890425,0.0721,3965.9,3965.8,0.5724]
[1761296890625,0.1442,3965.9,3965.8,0.5724]
[1761296890834,0.1460659,3965.9,3965.8,0.5724]
[1761296891127,0.1460659,3965.9,3965.8,0.7997]
[1761296891716,0.0739659,3965.9,3965.8,0.7997]
[1761296891915,0.1460659,3965.9,3965.8,0.7997]
[1761296892124,0.1460659,3965.9,3965.8,0.5724]
[1761296892324,0.1460659,3965.9,3965.8,0.7997]
[1761296892518,0.0739659,3965.9,3965.8,0.7997]
[1761296893433,0.0018659,3965.9,3965.8,0.7997]
[1761296894023,0.1460659,3965.9,3965.8,0.7997]
[1761296896924,0.1442,3965.2,3965.1,0.3502]
[1761296897426,3.2078,3965.8,3965.7,0.7997]
[1761296897627,3.352,3965.8,3965.7,0.5724]
[1761296897829,0.1442,3965.6,3965.5,0.484]
[1761296898130,0.1442,3965.6,3965.5,0.9335]
[1761296898423,0.0018659,3965.9,3965.8,0.7997]
[1761296900732,0.0739659,3965.9,3965.8,0.7997]
[1761296901330,0.1460659,3965.9,3965.8,0.7997]
[1761296901631,0.2163,3965.6,3965.5,0.484]
[1761296902024,0.1442,3965.6,3965.5,0.484]
[1761296902230,0.1442,3965.6,3965.5,0.7062]
[1761296902729,0.1442,3965.6,3965.5,0.7414]
[1761296903635,0.1442,3965.6,3965.5,0.9687]
[1761296904734,0.0018659,3965.9,3965.8,0.7997]
[1761296905529,3.2078,3966.6,3965.8,0.4495]
[1761296905835,1.82848869,3967.8,3965.8,0.4495]
[1761296905836,0.4503,3967.5,3966.5,3.2078]
[1761296906035,0.3226,3967.4,3967.1,0.45363]
[1761296906252,0.3226,3967.4,3966.9,3.2078]
[1761296906450,0.3226,3967.4,3967.3,3.2078]
[1761296906746,0.022,3967.8,3967.6,0.45357]
[1761296906953,0.022,3967.8,3967.7,3.2078]
[1761296907151,0.4723,3967.8,3967.7,3.2078]
[1761296908037,0.3226,3967.7,3967.1,0.45606356]
[1761296908243,0.4503,3967.2,3967.1,0.00243356]
[1761296908845,3.6581,3967.2,3967.1,0.00243356]
[1761296909245,0.338,3966.5,3966.3,3.2078]
[1761296910254,0.338,3966.5,3966.3,3.21051376]
[1761296910556,0.338,3966.5,3966.3,0.00271376]
[1761296912754,0.338,3966.5,3965.7,3.2078]
[1761296913051,0.338,3965.9,3965.7,3.2078]
[1761296914157,0.338,3965.9,3965.7,3.21096468]
[1761296915057,0.338,3965.7,3965.5,0.0352]
[1761296915950,0.338,3965.7,3964.0,1.80727362]
[1761296915951,0.338,3964.7,3964.6,3.2078]
[1761296916658,0.338,3964.7,3964.6,3.21015288]
[1761296916961,0.338,3965.0,3964.6,3.21015288]
[1761296917256,0.338,3965.0,3964.8,0.4539]
[1761296917557,0.3398765,3965.0,3964.8,0.4539]
[1761296918253,0.0018765,3965.0,3964.8,0.4539]
[1761296918459,0.3398765,3965.0,3964.8,0.4539]
[1761296918755,0.0018765,3965.0,3964.9,5.0]
[1761296919146,0.0018765,3965.0,3964.8,0.4539]
[1761296919752,0.338,3965.7,3965.5,0.45381]
[1761296919960,0.338,3965.9,3965.7,0.45379]
[1761296920258,0.338,3965.9,3965.5,0.45381]
[1761296920451,0.338,3965.9,3965.6,0.4538]
[1761296920667,0.338,3965.9,3965.4,3.2078]
[1761296920959,0.338,3965.9,3965.7,0.45379]
[1761296921552,0.34096787,3965.9,3965.7,0.45379]
[1761296926059,0.34096787,3965.9,3965.8,0.45379]
[1761296926363,0.34096787,3965.9,3965.8,3.66159]
[1761296926662,0.55286787,3965.9,3965.8,3.66159]
[1761296926865,0.76816787,3965.9,3965.8,3.2078]
[1761296927364,0.76816787,3965.9,3965.8,3.66159]
[1761296927963,0.76816787,3965.9,3965.8,0.45379]
[1761296928358,0.1403,3967.0,3965.4,3.2078]
[1761296928663,0.2119,3966.4,3965.8,3.2078]
[1761296928860,0.1403,3966.0,3965.9,0.45377]
[1761296929073,0.4783,3966.0,3965.9,0.45377]
[1761296929960,0.4801318,3966.0,3965.9,0.45377]
[1761296932754,0.9073318,3966.0,3965.9,0.45377]
[1761296935268,0.338,3965.9,3965.8,3.66159]
[1761296935566,0.5499,3965.9,3965.8,3.66159]
[1761296936756,0.1421318,3966.0,3965.9,0.45377]
[1761296936757,0.0018318,3966.0,3965.9,0.45377]
[1761296937267,0.9073318,3966.0,3965.9,0.45377]
[1761296943172,0.341,3965.9,3965.8,0.45379]
[1761296943371,0.341,3965.9,3965.2,0.89639149]
[1761296943372,0.341,3965.2,3965.0,3.2078]
[1761296943566,0.8053,3964.7,3964.6,3.66406288]
[1761296943768,0.8053,3964.7,3964.6,0.00235288]
[1761296944768,0.341,3963.3,3963.2,0.67229362]
[1761296944963,0.341,3963.2,3963.1,0.67229362]
[1761296945275,0.341,3962.9,3962.8,0.45412]
[1761296945677,0.34361961,3962.9,3962.8,0.45734978]
[1761296946275,0.341,3961.9,3961.8,3.66204]
[1761296946869,0.341,3961.9,3961.8,3.2078]
[1761296947175,0.341,3961.9,3961.8,3.21056628]
[1761296948173,0.341,3961.9,3961.8,0.00276628]
[1761296951776,0.8053,3961.9,3961.8,0.00276628]
[1761296952168,0.341,3961.9,3961.8,3.21056628]
[1761296952374,0.341,3962.7,3962.5,0.45415]
[1761296952680,0.341,3962.3,3961.8,0.00276628]
[1761296953166,0.341,3962.3,3962.0,0.45421]
[1761296953372,0.341,3962.3,3961.8,0.00276628]
[1761296955280,0.341,3962.3,3961.8,0.45700628]
[1761296955477,0.341,3962.3,3961.8,0.00276628]
[1761296955780,0.341,3962.3,3962.1,0.4542]
[1761296956875,0.341,3962.3,3961.8,0.00276628]
[1761296958081,0.341,3962.3,3962.1,0.4542]
[1761296959282,0.341,3962.3,3961.8,0.00276628]
[1761296959283,0.341,3962.3,3961.8,0.45699628]
[1761296959478,0.341,3962.3,3961.8,0.00276628]
[1761296961277,0.341,3962.3,3961.8,0.45700628]
[1761296961679,0.4643,3961.9,3961.8,0.45700628]
[1761296961880,0.8053,3961.9,3961.8,0.45700628]
[1761296964386,0.8053,3961.9,3961.8,0.00276628]
[1761296964681,0.341,3961.9,3961.8,0.45700628]
[1761296966983,0.4761,3962.0,3961.9,0.45423]
[1761296967181,0.7087,3962.0,3961.9,0.45423]
[1761296968079,0.9404,3962.0,3961.9,0.45423]
[1761296968279,0.8053,3961.9,3961.8,0.45700628]
[1761296969489,0.7945,3961.9,3961.8,0.45700628]
[1761296971290,0.7945,3961.9,3961.8,0.00276628]
[1761296971489,0.3191,3961.3,3961.2,0.4671]
[1761296971681,0.3191,3961.3,3961.2,1.24981]
[1761296971882,0.4475,3961.5,3961.4,1.24979]
[1761296972083,0.8816,3961.5,3961.4,0.68809]
[1761296972287,0.5323,3961.1,3961.0,0.68813]
[1761296972488,0.7532,3961.1,3961.0,0.69109464]
[1761296972691,0.7532,3961.1,3961.0,0.00296464]
[1761296973285,0.97259631,3961.1,3961.0,0.00296464]
[1761296974890,0.4475,3960.5,3960.4,0.66509172]
[1761296975080,0.4341,3960.1,3960.0,1.11954172]
[1761296975287,0.7532,3960.1,3960.0,1.11954172]
[1761296975492,0.97282928,3960.1,3960.0,0.45445]
[1761296975993,0.97567394,3960.1,3960.0,0.00211882]
[1761296976186,4.18347394,3960.1,3960.0,0.00211882]
[1761296976388,0.97567394,3960.1,3960.0,0.00211882]
[1761296976984,0.91018552,3961.6,3961.4,0.45428]
[1761296977185,0.3191,3961.9,3961.5,1.00098692]
[1761296977391,0.3191,3961.8,3961.6,0.45426]
[1761296978089,0.3223483,3961.8,3961.6,0.45426]
[1761296982100,0.0032483,3961.8,3961.7,0.3284]
[1761296982301,0.3223483,3961.8,3961.7,0.3284]
[1761296982501,0.3223483,3961.8,3961.6,0.45426]
[1761296982700,0.4507483,3961.8,3961.6,0.45426]
[1761296982902,0.3191,3961.7,3961.6,0.45426]
[1761296986604,0.5323,3961.7,3961.6,0.68806]
[1761296986802,0.7532,3961.7,3961.6,0.68806]
[1761296987602,0.7532,3961.7,3961.6,0.45426]
[1761296988406,0.7532,3961.7,3961.6,0.68806]
[1761296990102,0.0032483,3961.8,3961.7,1.24975]
[1761296991604,0.0032483,3961.8,3961.7,1.92203411]
[1761296993100,0.7564483,3961.8,3961.7,0.2338]
[1761296993303,0.3191,3961.7,3961.4,0.45428]
[1761296993508,0.4341,3961.3,3961.2,0.45431]
[1761296993705,0.4341,3961.3,3961.2,0.68811]
[1761296994009,0.7532,3961.3,3961.2,0.92141]
[1761296996602,0.7532,3961.3,3961.2,0.68811]
[1761296996798,0.7532,3961.3,3961.2,0.45431]
[1761296997510,0.7532,3961.3,3961.2,0.68811]
[1761296999505,0.7532,3961.3,3961.2,0.45431]
[1761296999809,0.7868,3960.9,3960.8,3.87356]
[1761297000014,0.7868,3960.9,3960.8,4.10266]
[1761297000204,0.5629,3960.9,3960.8,4.10266]
[1761297000406,0.5629,3961.4,3961.3,0.2114]
[1761297000611,0.2296,3961.7,3961.6,0.66567]
[1761297000912,0.4535,3961.7,3961.6,0.66567]
[1761297001113,0.7868,3961.7,3961.6,0.66567]
[1761297001613,0.7868,3961.7,3961.6,0.2114]
[1761297002016,0.7868,3961.7,3961.6,0.66566]
[1761297003015,0.7868,3961.7,3961.6,1.23386]
[1761297003215,0.7868,3961.7,3961.6,0.89476]
[1761297003811,0.2296,3961.4,3961.3,0.4543]
[1761297004115,0.2296,3961.4,3961.3,0.6657]
[1761297004116,0.7868,3961.4,3961.3,0.6657]
[1761297004305,0.7868,3961.4,3961.3,0.8948]
[1761297005102,0.4535,3961.4,3961.3,0.4543]
[1761297005307,0.4535,3961.4,3961.2,3.6621]
[1761297005706,0.7868,3961.3,3961.2,3.6621]
[1761297006507,0.7868,3961.3,3961.2,3.8735]
[1761297006911,0.7868,3961.3,3961.2,4.1026]
[1761297009716,0.3333,3961.2,3961.1,0.45432]
[1761297009911,0.7868,3961.2,3961.1,0.66572]
[1761297010609,0.7868,3961.2,3961.1,0.89482]
[1761297011808,0.7868,3961.2,3961.1,0.4405]
[1761297012020,0.7868,3961.2,3961.1,1.23392]
[1761297012611,0.7868,3961.2,3961.1,0.89482]
[1761297013024,0.7868,3961.2,3961.1,0.66572]
[1761297013227,0.7868,3961.2,3960.9,0.67228411]
[1761297013422,0.7868,3960.8,3960.7,1.33805411]
[1761297013618,1.00545241,3960.8,3960.7,0.89487]
[1761297013924,0.7868,3960.8,3960.7,1.23397]
[1761297015426,0.7868,3960.8,3960.7,0.89487]
[1761297016310,0.3333,3960.8,3960.7,1.23397]
[1761297016515,0.9256,3961.0,3960.6,3.88008411]
[1761297016718,0.7868,3960.1,3960.0,0.00211882]
[1761297017515,1.00529921,3960.1,3960.0,0.00211882]
[1761297018130,0.7868,3960.1,3960.0,0.00211882]
[1761297020017,0.7868,3958.8,3958.7,4.1029]
[1761297020929,0.79007669,3958.8,3958.7,4.10561597]
[1761297021125,0.00327669,3958.8,3958.7,4.44471597]
[1761297021330,0.00327669,3958.8,3958.7,9.44471597]
[1761297022124,0.5629,3959.9,3959.8,0.7796]
[1761297022426,0.7868,3959.9,3959.8,0.89497]
[1761297022826,0.7868,3959.9,3959.8,0.66587]
[1761297023030,0.78904506,3959.9,3959.8,0.66587]
[1761297023432,0.78904506,3959.9,3959.8,0.45447]
[1761297023636,0.3333,3959.8,3959.6,0.45449]
[1761297023835,0.7868,3959.7,3959.6,0.66589]
[1761297025236,0.23184506,3959.9,3959.8,0.45447]
[1761297025438,0.56514506,3959.9,3959.8,1.23407]
[1761297026636,0.78904506,3959.9,3959.8,0.89497]
[1761297027037,0.78904506,3959.9,3959.8,0.45447]
[1761297027440,0.78904506,3959.9,3959.8,0.66587]
[1761297027743,0.78904506,3959.9,3959.8,0.89497]
[1761297031447,0.78904506,3959.9,3959.8,0.66587]
[1761297031640,0.78904506,3959.9,3959.8,0.88367]
[1761297031846,0.78904506,3959.9,3959.8,1.23017]
[1761297032946,0.78904506,3959.9,3959.8,0.88367]
[1761297033642,0.78904506,3959.9,3959.8,1.23017]
[1761297033844,0.56514506,3959.9,3959.8,1.23017]
[1761297034045,0.78674506,3959.9,3959.8,1.23017]
[1761297034246,0.78674506,3959.9,3959.8,0.88367]
[1761297034750,0.78674506,3959.9,3959.8,1.23017]
[1761297037048,0.33554506,3959.9,3959.8,1.23017]
[1761297037353,0.00224506,3959.9,3959.8,1.23017]
[1761297037550,0.31874506,3959.9,3959.8,1.23017]
[1761297037950,0.00224506,3959.9,3959.8,1.23017]
[1761297038958,0.53394506,3959.9,3959.8,1.23017]
[1761297039263,0.00224506,3959.9,3959.8,1.23017]
[1761297040262,9.8338,3960.9,3960.6,1.23168]
[1761297040263,0.5317,3960.7,3960.6,1.23168]
[1761297040460,0.7533,3960.7,3960.6,0.88518]
[1761297041263,0.75510808,3960.7,3960.6,0.88518]
[1761297043764,0.75510808,3960.7,3960.6,0.66738]
[1761297044365,0.75510808,3960.7,3960.6,0.45438]
[1761297045468,0.75510808,3960.7,3960.6,0.88518]
[1761297046756,0.00180808,3960.7,3960.6,1.23168]
[1761297047068,0.53350808,3960.7,3960.6,1.23168]
[1761297047471,0.31830808,3960.7,3960.6,1.23168]
[1761297047668,0.00180808,3960.7,3960.6,1.23168]
[1761297048269,0.3165,3961.3,3961.2,0.45431]
[1761297048466,0.91018552,3962.4,3961.7,0.3465]
[1761297048661,0.7533,3962.4,3962.0,3.5543]
[1761297048969,0.7533,3962.4,3961.6,1.13564]
[1761297048970,0.7533,3961.7,3961.6,3.87506]
[1761297049263,0.7533,3961.7,3961.6,3.6386]
[1761297049464,0.53472357,3961.7,3961.6,3.9876174]
[1761297049762,0.3165,3962.5,3962.4,0.7773]
[1761297049971,0.3165,3962.9,3962.5,0.3465]
[1761297050268,0.5317,3962.9,3962.8,0.7773]
[1761297050771,0.53396944,3962.9,3962.8,0.7773]
[1761297051069,0.75556944,3962.9,3962.8,0.4308]
[1761297051264,0.00226944,3962.9,3962.8,0.7773]
[1761297051566,0.53396944,3962.9,3962.8,0.7773]
[1761297051770,0.75556944,3962.9,3962.8,0.4308]
[1761297051971,0.53396944,3962.9,3962.8,0.7773]
[1761297052465,0.31876944,3962.9,3962.8,0.7773]
[1761297052763,0.98571,3963.8,3962.9,0.3465]
[1761297052968,1.20731,3963.8,3963.7,0.4308]
[1761297053267,1.20731,3963.8,3963.7,0.213]
[1761297053868,1.20994826,3963.8,3963.7,0.213]
[1761297054269,0.00263826,3963.8,3963.7,1.23132]
[1761297054462,0.53433826,3963.8,3963.7,0.88482]
[1761297054769,0.75593826,3963.8,3963.7,0.88482]
[1761297054956,0.00263826,3963.8,3963.7,1.23132]
[1761297055162,0.7533,3964.2,3964.1,0.88478]
[1761297055363,0.8801,3964.0,3963.9,0.66699]
[1761297056169,0.88190179,3964.0,3963.9,0.66699]
[1761297056365,0.88190179,3964.0,3963.2,3.2078]
[1761297056366,0.4368,3963.3,3963.2,3.2078]
[1761297056566,0.7533,3962.9,3962.8,0.66712]
[1761297056767,0.3165,3962.9,3962.8,4.43922]
[1761297056965,0.1268,3963.0,3962.8,4.43922]
[1761297057272,0.5317,3963.2,3963.1,0.4308]
[1761297057668,0.5317,3963.2,3963.1,0.7773]
[1761297058775,0.3165,3963.4,3963.2,0.3465]
[1761297058975,0.3165,3963.4,3963.3,0.88486]
[1761297059176,0.3165,3963.4,3963.3,1.23136]
[1761297060673,0.763,3963.4,3963.3,0.66706]
[1761297060874,0.2262,3963.0,3962.9,0.99941]
[1761297061079,0.9193,3963.0,3962.9,0.89961]
[1761297061371,0.9193,3963.0,3962.9,0.2184]
[1761297061576,0.9193,3963.0,3962.8,3.2078]
[1761297061577,0.7857,3962.9,3962.8,3.2078]
[1761297062969,0.4575,3962.9,3962.5,0.45416]
[1761297063170,0.5544,3962.1,3962.0,4.10752]
[1761297064170,0.7857,3962.1,3962.0,3.6533]
[1761297064975,0.7857,3962.1,3962.0,4.10752]
[1761297067070,0.7857,3962.1,3962.0,3.6533]
[1761297067676,0.7857,3962.1,3962.0,3.9802]
[1761297068373,0.3282,3962.1,3962.0,3.9802]
[1761297068575,0.7857,3962.9,3962.8,0.2184]
[1761297071377,0.7857,3962.9,3962.8,0.4455]
[1761297072985,0.7857,3962.9,3962.8,0.2184]
[1761297073276,0.688,3962.5,3962.4,1.22657]
[1761297073470,0.4575,3962.3,3962.2,0.67259]
[1761297073675,0.1336,3962.5,3962.2,0.67259]
[1761297073871,0.91018552,3964.4,3963.8,0.4455]
[1761297074072,1.36140878,3965.2,3965.1,0.3269]
[1761297074286,0.5544,3965.4,3965.3,0.2184]
[1761297074775,0.5544,3965.4,3965.3,0.89934]
[1761297074982,0.55732767,3965.4,3965.3,0.90222184]
[1761297075279,0.78862767,3965.4,3965.3,0.67512184]
[1761297075781,0.78862767,3965.4,3965.3,0.00288184]
[1761297076480,0.78862767,3965.4,3965.3,0.22128184]
[1761297077179,0.33112767,3965.4,3965.3,0.70498184]
[1761297077380,0.00292767,3965.4,3965.3,0.70498184]
[1761297077685,0.3282,3966.2,3966.1,0.7021]
[1761297077879,0.3282,3966.4,3966.3,0.4455]
[1761297078779,0.3282,3966.3,3966.1,3.2078]
[1761297078978,0.7857,3966.2,3966.1,3.2078]
[1761297079383,0.7857,3966.2,3965.5,3.66162]
[1761297079384,0.3282,3966.1,3965.5,3.66162]
[1761297079583,0.3282,3965.9,3965.5,3.66162]
[1761297080287,0.5544,3965.9,3965.8,0.2184]
[1761297082692,0.3282,3965.8,3965.5,3.4262]
[1761297082882,0.7857,3965.6,3965.5,3.4262]
[1761297083190,0.7857,3965.6,3965.5,3.6533]
[1761297084187,0.5544,3965.6,3965.5,3.9099]
[1761297085892,0.5544,3965.6,3965.5,3.6533]
[1761297086281,0.5544,3965.6,3965.5,3.9099]
[1761297087285,0.5544,3965.6,3965.5,3.6533]
[1761297087484,0.5544,3965.6,3965.5,4.10712]
[1761297088094,0.3282,3965.9,3965.8,0.4455]
[1761297088394,0.3282,3965.9,3965.8,0.7021]
[1761297088790,0.3282,3965.9,3965.8,1.15588]
[1761297089290,0.5458,3966.2,3966.1,0.90025]
[1761297089484,3.21104892,3966.4,3965.7,1.13448]
[1761297089485,3.53834892,3966.4,3966.3,0.45373]
[1761297089693,4.892e-05,3966.4,3966.3,4.36413]
[1761297089885,4.892e-05,3966.4,3966.3,9.36413]
[1761297090190,4.892e-05,3966.4,3966.3,9.56474581]
[1761297091986,4.892e-05,3966.4,3966.3,4.36413]
[1761297092184,0.54584892,3966.4,3966.3,3.6543]
[1761297092593,0.76524892,3966.4,3966.3,3.6543]
[1761297093290,4.892e-05,3966.4,3966.3,3.6543]
[1761297095987,0.54584892,3966.4,3966.3,3.6543]
[1761297096193,0.54584892,3966.4,3966.3,4.10803]
[1761297096497,0.76524892,3966.4,3966.3,4.10803]
[1761297096789,0.76524892,3966.4,3966.3,3.4284]
[1761297097092,0.76524892,3966.4,3966.3,3.2078]
[1761297097888,0.1192,3966.4,3966.3,3.2078]
[1761297098080,2.23844892,3967.3,3966.3,3.4284]
[1761297098284,2.23844892,3967.3,3966.5,0.1308]
[1761297098285,3.316,3967.2,3966.5,0.1308]
[1761297098484,0.2384,3967.2,3967.1,0.5397]
[1761297098681,0.2384,3967.2,3966.7,0.3191]
[1761297098885,0.24059353,3967.2,3966.5,0.1308]
[1761297099388,0.24059353,3967.2,3966.5,1.1242]
[1761297099988,0.2384,3966.6,3966.5,0.6705]
[1761297100994,0.3576,3966.6,3966.5,0.3191]
[1761297101300,0.2384,3966.5,3966.4,0.3191]
[1761297101697,0.2384,3966.5,3966.4,0.5397]
[1761297106199,0.2384,3966.5,3966.4,0.7656]
[1761297107088,0.2384,3966.5,3966.4,0.5397]
[1761297108700,0.3576,3966.1,3965.9,3.2078]
[1761297108907,0.3576,3966.0,3965.9,3.5269]
[1761297110194,0.2384,3966.0,3965.8,0.3191]
[1761297110401,0.2384,3966.0,3965.9,0.5397]
[1761297111997,0.2384,3966.0,3965.9,0.7656]
[1761297112197,0.2384,3966.0,3965.9,0.5397]
[1761297112402,0.3576,3966.0,3965.9,0.5397]
[1761297112796,0.3576,3966.0,3965.9,0.3191]
[1761297115106,0.2384,3965.8,3965.7,0.5397]
[1761297116105,0.2384,3965.8,3965.6,0.035]
[1761297116106,0.1192,3965.7,3965.6,0.035]
[1761297116293,0.2384,3965.7,3965.6,0.8006]
[1761297116603,0.2384,3965.7,3965.6,0.7656]
[1761297117198,0.2384,3965.7,3965.6,0.5397]
[1761297117506,0.3576,3965.7,3965.6,0.5397]
[1761297118405,0.3576,3965.7,3965.6,0.3191]
[1761297118909,9.4756,3965.7,3965.6,0.3191]
[1761297120709,9.4756,3965.7,3965.3,0.03788184]
[1761297120710,0.2402,3965.4,3965.3,0.36098184]
[1761297120906,0.3603,3965.4,3965.3,0.36098184]
[1761297121111,0.3603,3965.4,3965.3,0.32598184]
[1761297123015,0.2402,3965.4,3965.3,0.53748184]
[1761297126322,6.5762,3965.4,3965.3,0.53748184]
[1761297127212,6.6963,3965.4,3965.3,0.32598184]
[1761297127520,6.6963,3965.4,3965.3,0.00288184]
[1761297128514,6.6963,3965.4,3965.3,0.32598184]
[1761297129313,0.2402,3965.4,3965.3,0.76608184]
[1761297129619,9.3402,3965.4,3965.3,0.76608184]
[1761297130419,9.3402,3965.4,3965.3,0.53748184]
[1761297130420,9.4603,3965.4,3965.3,0.53748184]
[1761297130822,9.4603,3965.4,3965.3,0.32598184]
[1761297131116,9.4603,3965.4,3965.3,0.00288184]
[1761297131329,14.4603,3965.4,3965.3,0.00288184]
[1761297131915,19.02950878,3965.4,3965.3,0.00288184]
[1761297132115,0.3603,3965.1,3965.0,0.00129069]
[1761297133021,0.3603,3965.1,3965.0,0.00393802]
[1761297134417,0.3603,3965.1,3965.0,0.76713802]
[1761297134418,0.1201,3965.1,3965.0,0.76713802]
[1761297134619,3.3279,3966.2,3965.7,0.3231]
[1761297134819,3.448,3966.2,3966.1,0.7632]
[1761297135021,12.091,3966.2,3966.1,0.7632]
[1761297136824,0.1201,3966.1,3966.0,0.4529]
[1761297137022,12.091,3966.2,3965.6,0.3231]
[1761297137023,0.2402,3965.7,3965.6,0.3231]
[1761297137325,9.3392,3965.7,3965.6,0.5346]
[1761297137720,9.3392,3965.7,3965.6,0.7632]
[1761297139327,3.3279,3966.2,3966.0,0.1298]
[1761297139519,3.2078,3966.2,3966.1,0.7632]
[1761297139821,12.543,3966.2,3966.1,0.7632]
[1761297140020,0.3603,3966.1,3966.0,0.3231]
[1761297140226,0.2402,3965.7,3965.6,0.5346]
[1761297140420,9.3382,3965.7,3965.6,0.5346]
[1761297141621,9.4583,3965.7,3965.6,0.5346]
[1761297142424,9.3382,3965.7,3965.6,0.5346]
[1761297144526,9.3382,3965.7,3965.6,0.7632]
[1761297145927,9.3382,3965.7,3965.6,0.3231]
[1761297145928,9.4583,3965.7,3965.6,0.3231]
[1761297146228,0.3603,3965.6,3965.5,0.4529]
[1761297148434,0.2402,3965.6,3965.5,0.6644]
[1761297148623,0.3599,3965.6,3965.5,0.4529]